Cogmind - Beta 9.3 @@@ ROGUE MODE // 2019.12.27 @ 10:47:44 Player: 3.14 Result: Self-destructed Performance ------------- Evolutions (3) 1500 Regions Visited (10) 2000 Robots Destroyed (88) 440 Value Destroyed (2918) 2918 Prototype IDs (4) 80 Alien Tech Used (0) 0 Bonus (1254) 1254 TOTAL SCORE: 8192 Bonus ------- High Alert Combat Kills 119 Follower Combat Kills 284 Entered Garrisons 400 Used RIF Installer 500 Friendly Fire -49 Cogmind --------- Core Integrity 542/700 Matter 130/300 Energy 280/280 System Corruption 0% Temperature Cool (0) Movement Treading (220) Ox3 Location -7/Garrison Parts ------- > --- POWER (1) -------- Heavy Ion Engine > --- PROPULSION (2) --- Light Treads Light Treads > --- UTILITY (8) ------ High-capacity Storage Unit High-capacity Storage Unit High-capacity Storage Unit High-capacity Storage Unit Insulated Plating Relay Coupler [Sentry] (6) > --- WEAPON (2) ------- Autogun > --- INVENTORY (36) --- Light Nuclear Core Light Treads Light Treads Advanced Treads High-capacity Storage Unit High-capacity Matter Pod (200) Hardened Light Armor Plating Insulated Plating Insulated Plating Relay Coupler [NC] (27) Relay Coupler [NC] (26) Relay Coupler [Grunt] (26) Relay Coupler [Sentry] (20) Relay Coupler [Behemoth] (9) EM Shotgun Shock Rifle Improved Medium Laser Improved Medium Laser EM Pulse Cannon Ion Cannon Heavy Assault Rifle Heavy Assault Rifle Autogun Autogun Autogun Autogun Gauss Rifle Datajack Katana Peak State ------------ > --- POWER ------------ Heavy Ion Engine > --- PROPULSION ------- Light Treads Light Treads > --- UTILITY ---------- Advanced Heat Sink High-capacity Storage Unit High-capacity Storage Unit High-capacity Storage Unit High-capacity Storage Unit Medium Armor Plating Insulated Plating Relay Coupler [Sentry] > --- WEAPON ----------- Autogun Autogun > --- INVENTORY -------- Light Nuclear Core Light Treads Light Treads Light Treads Light Treads Advanced Treads High-capacity Storage Unit High-capacity Matter Pod Medium Armor Plating Hardened Light Armor Plating Insulated Plating Insulated Plating Insulated Plating Relay Coupler [NC] Relay Coupler [NC] Relay Coupler [Grunt] Relay Coupler [Sentry] Relay Coupler [Behemoth] EM Shotgun Shock Rifle Improved Medium Laser Improved Medium Laser EM Pulse Cannon Ion Cannon Heavy Assault Rifle Heavy Assault Rifle Autogun Autogun Autogun Gauss Rifle Gauss Rifle Grenade Launcher Datajack Katana [Rating: 35] Favorites ----------- Power Heavy Ion Engine Engine Heavy Ion Engine Power Core Light Nuclear Core Propulsion Light Treads Treads Light Treads Utility High-capacity Storage Unit Device Advanced Heat Sink Storage High-capacity Storage Unit Hackware Relay Coupler [Sentry] Protection Hardened Light Armor Plating Weapon Autogun Energy Gun EM Shotgun Energy Cannon EM Pulse Cannon Ballistic Gun Autogun Launcher Grenade Launcher Slashing Weapon Katana Special Melee Weapon Datajack Build | -11 -10 -10 -9 -9 -9 -8 -8 -8 -7 -7 ------- Run | Scr Mat Min Mat Min Exi Min Mat Gar Fac Gar Slots Evolved 6 | . . . 2 . . . 2 . 2 . Power . | . . . . . . . . . . . Propulsion . | . . . . . . . . . . . Utility 6 | . . . 2 . . . 2 . 2 . Weapon . | . . . . . . . . . . . Parts Attached 95 | 6 12 . 11 3 1 4 27 18 6 7 Power 8 | 1 1 . 2 . . . 2 2 . . Engine 7 | 1 1 . 2 . . . 2 1 . . Core 1 | . . . . . . . . 1 . . Reactor . | . . . . . . . . . . . Propulsion 15 | 2 1 . 2 . . . 4 4 . 2 Treads 15 | 2 1 . 2 . . . 4 4 . 2 Leg . | . . . . . . . . . . . Wheel . | . . . . . . . . . . . Hover . | . . . . . . . . . . . Flight . | . . . . . . . . . . . Utility 23 | 1 2 . 3 . 1 . 7 4 3 2 Device 1 | . . . . . . . . . 1 . Storage 9 | 1 2 . 1 . 1 . 3 1 . . Processor . | . . . . . . . . . . . Hackware 1 | . . . . . . . . . 1 . Protection 12 | . . . 2 . . . 4 3 1 2 Artifact . | . . . . . . . . . . . Weapon 49 | 2 8 . 4 3 . 4 14 8 3 3 Energy Gun 10 | 1 6 . . . . . 1 2 . . Energy Cannon 1 | . . . . . . . 1 . . . Ballistic Gun 25 | 1 . . 3 2 . 2 10 4 1 2 Ballistic Cannon . | . . . . . . . . . . . Launcher 11 | . 2 . 1 1 . 2 2 2 . 1 Special Weapon . | . . . . . . . . . . . Impact Weapon . | . . . . . . . . . . . Slashing Weapon 1 | . . . . . . . . . 1 . Piercing Weapon . | . . . . . . . . . . . Special Melee Weapon 1 | . . . . . . . . . 1 . Unidentified Prototypes 2 | . . . 1 . . . 1 . . . Parts Lost 15 | . 3 . . . . . 2 2 . 8 Power . | . . . . . . . . . . . Propulsion 4 | . 1 . . . . . . 1 . 2 Utility 7 | . . . . . . . 2 1 . 4 Weapon 4 | . 2 . . . . . . . . 2 Highest Loss Streak 8 | . 2 . . . . . 1 2 . 8 Average Slot Usage (%) 99 | . 98 100 100 100 100 100 99 99 100 96 Engine 9 | . 14 14 11 11 11 11 9 6 7 7 Treads 20 | . 27 28 22 22 22 22 18 17 15 14 Storage 33 | . 27 28 27 33 33 33 36 36 30 30 Protection 14 | . . . 16 11 11 11 18 17 17 12 Energy Gun 5 | . 23 28 . . . . . 4 . . Ballistic Gun 14 | . 3 . 21 20 22 21 17 12 12 10 Naked Turns . | . . . . . . . . . . . Heaviest Build 160 | 11 75 74 115 115 115 115 152 156 160 153 Greatest Support 43 | 40 40 40 43 43 43 43 43 40 40 40 Greatest Overweight (x) 3 | . 3 1 2 2 2 2 3 3 3 3 Average Overweight (x) 2 | . 1 1 2 2 2 2 3 3 3 3 Largest Inventory Capacity 44 | 6 20 20 28 28 28 28 36 44 36 36 Average Capacity 31 | 5 19 20 23 28 28 28 35 36 36 36 Most Carried 36 | 4 20 20 27 28 28 28 36 36 34 34 Average Carried 29 | 2 15 20 21 27 27 28 32 34 33 33 Final Capacity 36 | 6 20 20 28 28 28 28 36 36 36 36 Final Carried 36 | 4 20 20 27 28 28 28 36 35 34 29 Class Distribution -------------------- 87% | Hauler-Mutant 10% | Bothacker-Mutant Dominant Class ---------------- Hauler-Mutant | -10/Materials Hauler-Mutant | -10/Mines Hauler-Mutant | -9/Materials Hauler-Mutant | -9/Mines Hauler-Mutant | -9/Exiles Hauler-Mutant | -8/Mines Hauler-Mutant | -8/Materials Hauler-Mutant | -8/Garrison Bothacker-Mutant | -7/Factory Bothacker-Mutant | -7/Garrison Resources | -11 -10 -10 -9 -9 -9 -8 -8 -8 -7 -7 ----------- Run | Scr Mat Min Mat Min Exi Min Mat Gar Fac Gar Matter Collected 2515 | 264 135 . 384 65 184 75 790 618 . . Remotely . | . . . . . . . . . . . Salvage Created 2861 | 88 505 . 506 65 . 110 823 744 . 20 Parts 190 | 1 30 . 36 4 . 10 57 50 . 2 Haulers Intercepted 5 | . 2 . 1 . . . 2 . . . Recyclers Shooed 5 | . 3 . . . . 1 1 . . . Parts Field Recycled . | . . . . . . . . . . . Retrieved Matter . | . . . . . . . . . . . Parts Self-Destructed . | . . . . . . . . . . . Prevented . | . . . . . . . . . . . Kills | -11 -10 -10 -9 -9 -9 -8 -8 -8 -7 -7 ------- Run | Scr Mat Min Mat Min Exi Min Mat Gar Fac Gar Combat Hostiles Destroyed 72 | . 12 . 15 2 . 6 17 19 . 1 Guns 44 | . 5 . 12 . . 2 10 14 . 1 AOE 26 | . 6 . 3 2 . 4 6 5 . . Classes Destroyed 12 | 1 6 . 2 . . . 2 1 . . Worker 2 | . . . . . . . 2 . . . Builder 4 | . 1 . . . . . 3 . . . Hauler 5 | . 2 . 1 . . . 2 . . . Recycler 3 | 1 . . . . . . 2 . . . Operator 1 | . 1 . . . . . . . . . Watcher 1 | . 1 . . . . . . . . . Swarmer 30 | . 6 . 7 . . 3 6 7 . 1 Grunt 31 | . 6 . 6 2 . 3 4 10 . . Brawler 1 | . . . 1 . . . . . . . Sentry 7 | . . . 1 . . . 6 . . . Specialist 1 | . . . . . . . . 1 . . Hunter 2 | . . . . . . . 1 1 . . Best Kill Streak 8 | 1 3 . 3 2 . 3 8 4 . 1 Combat Bots Only 4 | . 3 . 3 2 . 3 3 4 . 1 Max Kills in Single Turn 4 | 1 2 . 3 2 . 3 4 4 . 1 Gunslinging 1 | . . . . . . . 1 . . . Exploded 4 | . 2 . 3 2 . 3 1 4 . . Melee . | . . . . . . . . . . . Uniques/NPCs Destroyed . | . . . . . . . . . . . Combat | -11 -10 -10 -9 -9 -9 -8 -8 -8 -7 -7 -------- Run | Scr Mat Min Mat Min Exi Min Mat Gar Fac Gar Damage Taken 4611 | . 480 . 452 26 . 195 946 1143 50 1319 Core 389 | . 44 . 34 . . 31 45 77 . 158 Absorbed by Shields 73 | . . . . . . . . 73 . . Core Remaining (%) 85 | 100 . 82 . . . 83 . 77 . . Volleys Fired 217 | 4 38 . 44 2 . 7 56 56 . 10 Largest 2 | 2 2 . 2 2 . 2 2 2 . 2 Hottest 90 | 60 90 . 46 46 . 46 63 90 . 51 Shots Fired 404 | 8 68 . 85 3 . 10 101 109 . 20 Gun 378 | 8 65 . 82 2 . 6 90 105 . 20 Cannon 4 | . . . . . . . 4 . . . Launcher 22 | . 3 . 3 1 . 4 7 4 . . Special . | . . . . . . . . . . . Kinetic 280 | 4 3 . 82 2 . 6 90 73 . 20 Thermal 7 | 4 3 . . . . . . . . . Explosive 22 | . 3 . 3 1 . 4 7 4 . . Electromagnetic 95 | . 59 . . . . . 4 32 . . Robot Hit Streak 18 | 6 9 . 14 4 . 6 14 18 . 5 Robot Miss Streak 4 | 2 4 . 4 . . 2 3 2 . 3 Penetration Max 1 | . . . . . . . . . . 1 Secondary Targets 8 | . . . 2 . . . 1 4 . 1 Max Gunslinging Chain 1 | . . . 1 . . . 1 1 . 1 Shots Hit Robots 267 | 6 50 . 51 3 . 5 72 66 3 11 Core Hits 154 | 2 28 . 22 4 . 10 40 44 . 4 Critical Hits 2 | . . . 1 . . . 1 . . . Critical Kills . | . . . . . . . . . . . Critical Parts Destroyed 2 | . . . 1 . . . 1 . . . Melee Attacks 10 | . . . . . . . . . 10 . Impact . | . . . . . . . . . . . Slashing 6 | . . . . . . . . . 6 . Piercing . | . . . . . . . . . . . Sneak Attacks 1 | . . . . . . . . . 1 . Combat Hostiles . | . . . . . . . . . . . Follow-up Attacks . | . . . . . . . . . . . Damage Inflicted 5801 | 63 1077 1 803 131 . 446 1772 1282 . 226 Guns 3803 | 63 742 . 705 29 . 65 999 974 . 226 Cannons 107 | . . . . . . . 107 . . . Explosions 1836 | . 334 . 85 102 . 371 636 308 . . Melee . | . . . . . . . . . . . Ramming 55 | . 1 1 13 . . 10 30 . . . Kinetic 2733 | 29 19 . 705 29 . 65 999 661 . 226 Thermal 74 | 34 40 . . . . . . . . . Explosive 1796 | . 294 . 85 102 . 371 636 308 . . Electromagnetic 1143 | . 723 . . . . . 107 313 . . Impact . | . . . . . . . . . . . Slashing . | . . . . . . . . . . . Piercing . | . . . . . . . . . . . Highest Corruption . | . . . . . . . . . . . Average Corruption . | . . . . . . . . . . . Corruption Purged . | . . . . . . . . . . . Overload Shots . | . . . . . . . . . . . Overflow Damage 19 | . 14 . . . . . 5 . . . Projectiles . | . . . . . . . . . . . Explosions 14 | . 14 . . . . . . . . . Melee 5 | . . . . . . . 5 . . . Knockbacks 1 | . 1 . . . . . . . . . Impact 1 | . 1 . . . . . . . . . Kinetic . | . . . . . . . . . . . Secondary . | . . . . . . . . . . . Self-Inflicted Damage 158 | . 68 . 23 . . . 67 . . . Shots 6 | . 2 . 1 . . . 3 . . . Rammed 7 | . 2 1 2 . . 1 1 . . . Targets Rammed 8 | . 2 1 2 . . 1 2 . . . Kicked . | . . . . . . . . . . . Crushed 1 | . . . . . . . 1 . . . Highest Temperature 264 | 40 264 . 145 12 . 25 248 174 . 18 Average Temperature 60 | 22 86 . 36 6 . 11 69 57 . 12 Received Heat Transfer 1179 | . 195 . 87 15 . 90 261 438 18 75 Siege Activations . | . . . . . . . . . . . Robots Corrupted 4 | . 2 . . . . . 1 1 . . Combat Hostiles 2 | . 1 . . . . . 1 . . . Parts Fried 8 | . 5 . . . . . 2 1 . . Impact Corruptions 1 | . . . . . . . 1 . . . Robots Melted . | . . . . . . . . . . . Combat Hostiles . | . . . . . . . . . . . Parts Melted 1 | 1 . . . . . . . . . . Heat Transferred 125 | 75 50 . . . . . . . . . Parts Sabotaged . | . . . . . . . . . . . Parts Stolen . | . . . . . . . . . . . Parts Stripped . | . . . . . . . . . . . Power Chain Reactions 2 | . 2 . . . . . . . . . Missiles Intercepted . | . . . . . . . . . . . Alert | -11 -10 -10 -9 -9 -9 -8 -8 -8 -7 -7 ------- Run | Scr Mat Min Mat Min Exi Min Mat Gar Fac Gar Peak Influence 1107 | 5 218 79 288 155 . 176 369 1107 581 327 Average Influence 393 | 1 93 79 163 153 . 69 227 693 448 311 Maximum Alert Level 4 | . 1 . 1 . . . 1 4 2 1 Low Security (%) 34 | 100 87 100 63 100 . 100 37 . . . Level 1 24 | . 12 . 36 . . . 62 12 . 100 Level 2 24 | . . . . . . . . 46 100 . Level 3 13 | . . . . . . . . 32 . . Level 4 3 | . . . . . . . . 8 . . Level 5 . | . . . . . . . . . . . High Security . | . . . . . . . . . . . Max Security . | . . . . . . . . . . . Squads Dispatched 4 | . 3 . . . . . 1 . . . Investigation 2 | . 1 . . . . . 1 . . . Extermination . | . . . . . . . . . . . Reinforcement 2 | . 2 . . . . . . . . . Assault . | . . . . . . . . . . . Garrison . | . . . . . . . . . . . Intercept . | . . . . . . . . . . . Construction Impeded . | . . . . . . . . . . . Haulers Reinforced . | . . . . . . . . . . . Stealth | -11 -10 -10 -9 -9 -9 -8 -8 -8 -7 -7 --------- Run | Scr Mat Min Mat Min Exi Min Mat Gar Fac Gar Distress Signals 2 | . . . 2 . . . . . . . Communications Jammed . | . . . . . . . . . . . Distress Signals . | . . . . . . . . . . . Times Spotted 112 | . 19 . 21 3 . 6 21 29 1 12 Peak Tracking Total 10 | . 4 . 4 1 . 3 4 4 1 10 Tactical Retreats 6 | . . . 3 1 . . . 2 . . Traps | -11 -10 -10 -9 -9 -9 -8 -8 -8 -7 -7 ------- Run | Scr Mat Min Mat Min Exi Min Mat Gar Fac Gar Traps Triggered 13 | . . . . . . . 1 12 . . Indirectly . | . . . . . . . . . . . Trap Hack Attempts . | . . . . . . . . . . . Triggered . | . . . . . . . . . . . Disarmed . | . . . . . . . . . . . Reprogrammed . | . . . . . . . . . . . Reused . | . . . . . . . . . . . Traps Extracted . | . . . . . . . . . . . Installed . | . . . . . . . . . . . Triggered . | . . . . . . . . . . . Machines | -11 -10 -10 -9 -9 -9 -8 -8 -8 -7 -7 ---------- Run | Scr Mat Min Mat Min Exi Min Mat Gar Fac Gar Machines Disabled 10 | . 3 . 2 . . . 2 3 . . Max in Single Turn 2 | . 2 . 1 . . . 2 1 . . Garrison Relay 3 | . . . . . . . . 3 . . Machines Sabotaged . | . . . . . . . . . . . Garrisons Compromised . | . . . . . . . . . . . Overloaded Fab Kills . | . . . . . . . . . . . Fab Network Shutdowns . | . . . . . . . . . . . Hacking | -11 -10 -10 -9 -9 -9 -8 -8 -8 -7 -7 --------- Run | Scr Mat Min Mat Min Exi Min Mat Gar Fac Gar Machines Accessed 14 | . 1 . 3 . 1 . 7 . 2 . Terminals 9 | . 1 . 2 . . . 5 . 1 . Fabricators . | . . . . . . . . . . . Repair Stations 2 | . . . 1 . . . 1 . . . Recycling Units . | . . . . . . . . . . . Scanalyzers . | . . . . . . . . . . . Garrison Access 2 | . . . . . . . 1 . 1 . Total Hacks 36 | . 5 . 7 . 1 . 17 . 6 . Successful 20 | . 3 . 4 . 1 . 9 . 3 . Failed 16 | . 2 . 3 . . . 8 . 3 . Catastrophic 2 | . . . 1 . . . . . 1 . Database Lockouts . | . . . . . . . . . . . Manual 15 | . 1 . 2 . . . 10 . 2 . Terminals 28 | . 5 . 4 . . . 14 . 5 . Fabricators . | . . . . . . . . . . . Repair Stations 5 | . . . 3 . . . 2 . . . Recycling Units . | . . . . . . . . . . . Scanalyzers . | . . . . . . . . . . . Garrison Access 2 | . . . . . . . 1 . 1 . Terminal Hacks 7 | . 2 . . . 1 . 3 . 1 . Record 1 | . . . . . 1 . . . . . Prototype ID Bank 1 | . 1 . . . . . . . . . Unreport Threat 1 | . . . . . . . . . 1 . Locate Traps 1 | . 1 . . . . . . . . . Recall Investigation 1 | . . . . . . . 1 . . . Zone Layout 2 | . . . . . . . 2 . . . Fabricator Hacks . | . . . . . . . . . . . Repair Station Hacks 4 | . . . 2 . . . 2 . . . Scan Component 2 | . . . 1 . . . 1 . . . Repair 2 | . . . 1 . . . 1 . . . Recycling Unit Hacks . | . . . . . . . . . . . Scanalyzer . | . . . . . . . . . . . Garrison Access Hacks 2 | . . . . . . . 1 . 1 . Unlock Access 2 | . . . . . . . 1 . 1 . Unauthorized Hacks 21 | . 2 . 4 . . . 12 . 3 . Terminals 7 | . 1 . 2 . . . 3 . 1 . Assimilate 1 | . . . . . . . 1 . . . Botnet 6 | . 1 . 2 . . . 2 . 1 . Fabricators . | . . . . . . . . . . . Repair Stations . | . . . . . . . . . . . Recycling Units . | . . . . . . . . . . . Scanalyzers . | . . . . . . . . . . . Garrison Access . | . . . . . . . . . . . Data Cores Recovered 1 | . 1 . . . . . . . . . Used . | . . . . . . . . . . . Hacking Detections 12 | . 1 . 3 . . . 6 . 2 . Full Trace Events 1 | . . . 1 . . . . . . . Feedback Events . | . . . . . . . . . . . Feedback Blocked . | . . . . . . . . . . . Robot Schematics Acquired . | . . . . . . . . . . . Robots Built . | . . . . . . . . . . . Matter . | . . . . . . . . . . . Time . | . . . . . . . . . . . Total Robot Build Rating . | . . . . . . . . . . . Part Schematics Acquired . | . . . . . . . . . . . Parts Built . | . . . . . . . . . . . Matter . | . . . . . . . . . . . Time . | . . . . . . . . . . . Total Part Build Rating . | . . . . . . . . . . . Parts Repaired 2 | . . . 1 . . . 1 . . . Time 58 | . . . 26 . . . 32 . . . Parts Recycled . | . . . . . . . . . . . Recycled Matter . | . . . . . . . . . . . Retrieved Matter . | . . . . . . . . . . . Retrieved Components . | . . . . . . . . . . . Parts Scanalyzed . | . . . . . . . . . . . Part Schematics Acquired . | . . . . . . . . . . . Parts Damaged . | . . . . . . . . . . . Bothacking | -11 -10 -10 -9 -9 -9 -8 -8 -8 -7 -7 ------------ Run | Scr Mat Min Mat Min Exi Min Mat Gar Fac Gar Used RIF Installer 1 | . . . . . . . . 1 . . Robots Hacked 1 | . . . . . . . . . 1 . Non-combat . | . . . . . . . . . . . Combat 1 | . . . . . . . . . 1 . Robot Hacks Applied 2 | . . . . . . . . . 2 . find_garrison 1 | . . . . . . . . . 1 . formatsys_high 1 | . . . . . . . . . 1 . Relay Couplers Released 12 | . . . . . . . . 12 . . Machine Destruction 12 | . . . . . . . . 12 . . Attached 1 | . . . . . . . . . 1 . Robots Rewired 6 | . . . . . . . . 6 . . Allies Hacked . | . . . . . . . . . . . Hacks Repelled . | . . . . . . . . . . . Allies | -11 -10 -10 -9 -9 -9 -8 -8 -8 -7 -7 -------- Run | Scr Mat Min Mat Min Exi Min Mat Gar Fac Gar Total Allies 9 | . . . . 1 . . 1 6 1 . Largest Group 6 | . . . . 1 1 . 1 6 1 1 Highest-Rated Group 126 | . . . . 31 31 . 10 126 32 32 Highest-Rated Ally 32 | . . . . 31 31 . 10 21 32 32 Total Orders 3 | . . . . . . . . 3 . . STAY 2 | . . . . . . . . 2 . . FOLLOW 1 | . . . . . . . . 1 . . Ally Attacks 29 | . . . . . . . . 24 . 5 Total Damage 726 | . . . . . . . . 519 . 207 Kills 10 | . . . . . . . . 9 . 1 Allies Corrupted . | . . . . . . . . . . . Allies Melted . | . . . . . . . . . . . Intel | -11 -10 -10 -9 -9 -9 -8 -8 -8 -7 -7 ------- Run | Scr Mat Min Mat Min Exi Min Mat Gar Fac Gar Robot Analysis Total . | . . . . . . . . . . . Derelict Logs Recovered 2 | . . 2 . . . . . . . . Drone Launches . | . . . . . . . . . . . Drone Recoveries . | . . . . . . . . . . . Exploration | -11 -10 -10 -9 -9 -9 -8 -8 -8 -7 -7 ------------- Run | Scr Mat Min Mat Min Exi Min Mat Gar Fac Gar Turns Passed 6347 | 95 662 243 548 62 548 226 1148 2358 327 130 Spaces Moved 2587 | 48 284 135 189 23 273 100 411 948 133 43 Core 4 | 4 . . . . . . . . . . Treads 2583 | 44 284 135 189 23 273 100 411 948 133 43 Legs . | . . . . . . . . . . . Wheels . | . . . . . . . . . . . Hover . | . . . . . . . . . . . Flight . | . . . . . . . . . . . Fastest Speed 50 | 50 160 180 200 200 200 200 220 220 220 220 Average Speed 207 | 150 180 180 200 200 200 200 220 220 220 220 Slowest Speed 220 | 160 220 180 200 200 200 200 220 220 220 220 Overloaded Moves . | . . . . . . . . . . . Propulsion Burnouts . | . . . . . . . . . . . Robots Hopped . | . . . . . . . . . . . Cave-ins Triggered . | . . . . . . . . . . . Exploration Rate (%) 34 | 4 57 51 24 5 61 37 43 73 6 21 Regions Visited 10 Branch Regions 4 Pre-discovered Areas 2 | . . . . . 2 . . . . . Known Exits Taken 3 | . . . 1 . . . 1 . 1 . Unknown Exits Taken 6 | 1 1 1 . 1 1 1 . . . . Scrap Searched . | . . . . . . . . . . . Spaces Dug 19 | . 4 . . . . 10 . . 5 . Terrain Destroyed 181 | . 30 . 23 12 . 27 78 5 5 1 Melee 5 | . . . . . . . . . 5 . Projectile 1 | . . . . . . . . . . 1 AOE 175 | . 30 . 23 12 . 27 78 5 . . Actions | -11 -10 -10 -9 -9 -9 -8 -8 -8 -7 -7 --------- Run | Scr Mat Min Mat Min Exi Min Mat Gar Fac Gar Total 3185 | 61 362 135 286 35 278 116 571 1129 152 60 Wait 98 | . . . 26 7 . 3 39 21 2 . Move 2579 | 47 283 134 188 22 272 99 411 947 133 43 Hop . | . . . . . . . . . . . Pick Up 75 | 4 22 . 11 1 2 1 18 15 1 . Fast Attach 14 | 6 2 . 1 . . . 4 1 . . Attach 22 | . 3 . 2 . . . 5 5 2 5 Detach . | . . . . . . . . . . . Swap 59 | . 7 . 8 3 1 4 18 12 4 2 Drop 47 | . 5 . 4 . 3 1 18 16 . . Fire 217 | 4 38 . 44 2 . 7 56 56 . 10 Melee 10 | . . . . . . . . . 10 . Ram . | . . . . . . . . . . . Kick . | . . . . . . . . . . . Crush 8 | . 2 1 2 . . 1 2 . . . Escape Stasis 21 | . . . . . . . . 21 . . Rewire 35 | . . . . . . . . 35 . . Trap . | . . . . . . . . . . . Miscellaneous . | . . . . . . . . . . . Route ------- -11/Scrapyard -10/Materials (discovered 3 exits: *Mat x2 / [*Min]) -10/Mines -9/Materials (discovered 2 exits: *Min x2) -9/Mines -9/Exiles -8/Mines -8/Materials -8/Garrison (discovered 3 exits: *Fac x3) -7/Factory -7/Garrison History --------- Turn | Location | Event 17 | -11/Scrapyard | Discovered new exit (range 15) 96 | -11/Scrapyard | Entered Materials 288 | -10/Materials | Discovered new exit (range 3) 417 | -10/Materials | Build established: Hauler-Mutant 503 | -10/Materials | Discovered new exit (range 15) 642 | -10/Materials | Discovered new exit (range 10) 758 | -10/Materials | Entered Mines 834 | -10/Mines | Learned 2 Materials zone layouts 991 | -10/Mines | Discovered new exit (range 6) 1001 | -10/Mines | Entered Materials 1001 | -9/Materials | Evolved 2 slots: Utility x2 1002 | -9/Materials | Identified exit to Mines 1175 | -9/Materials | Repaired Grenade Launcher 1549 | -9/Materials | Entered Mines 1578 | -9/Mines | Deemed a non-threat by the Exiles lab entrance 1580 | -9/Mines | Discovered new exit (range 5) 1598 | -9/Mines | Escorted by a lone wolf Derelict 1611 | -9/Mines | Entered Exiles 1611 | -9/Exiles | Accompanied by 1 ally 1618 | -9/Exiles | Learned location of Storage (-9) 1661 | -9/Exiles | Met 8R-AWN 1695 | -9/Exiles | Met EX-HEX 1822 | -9/Exiles | Met EX-DEC 1987 | -9/Exiles | Learned location of Zion (-7) 2033 | -9/Exiles | Met EX-BIN 2137 | -9/Exiles | Discovered new exit (range 14) 2159 | -9/Exiles | Entered Mines 2336 | -8/Mines | Discovered new exit (range 6) 2385 | -8/Mines | Entered Materials 2385 | -8/Materials | Evolved 2 slots: Utility x2 3452 | -8/Materials | Repaired Autogun 3533 | -8/Materials | Identified exit to Garrison 3533 | -8/Materials | Entered Garrison 3616 | -8/Garrison | Triggered checkpoint 3782 | -8/Garrison | Triggered checkpoint 3787 | -8/Garrison | Discovered new exit (range 13) 3951 | -8/Garrison | Triggered checkpoint 4078 | -8/Garrison | Discovered new exit (range 14) 4260 | -8/Garrison | Discovered new exit (range 14) 4302 | -8/Garrison | Installed Relay Interface Framework 4924 | -8/Garrison | Triggered checkpoint 4924 | -8/Garrison | Triggered checkpoint 5108 | -8/Garrison | Triggered checkpoint 5127 | -8/Garrison | Garrison Relay disabled 5342 | -8/Garrison | Triggered checkpoint 5382 | -8/Garrison | Garrison Relay disabled 5608 | -8/Garrison | Triggered checkpoint 5644 | -8/Garrison | Garrison Relay disabled 5891 | -8/Garrison | Entered Factory 5891 | -7/Factory | Evolved 2 slots: Utility x2 5951 | -7/Factory | Build established: Bothacker-Mutant 6218 | -7/Factory | Identified exit to Garrison 6218 | -7/Factory | Entered Garrison 6218 | -7/Garrison | Accompanied by 1 ally 6298 | -7/Garrison | Triggered checkpoint 6318 | -7/Garrison | Triggered checkpoint 6348 | -7/Garrison | Self-destructed Last Messages --------------- 06317_ Med. Armor Plating destroyed. 06318_ S-27 Virus destroyed. 06318_ Switching to secondary target: L-41 Fighter. 06318_ Beams of light sweep through the air. An alarm sounds. 06320_ S-27 Virus destroyed. 06322_ Grenade Launcher destroyed. 06323_ Lgt. Treads destroyed. 06325_ G-47 Trooper destroyed. 06326_ Slug penetrates Wall. 06327_ S-27 Virus destroyed. 06329_ Slug penetrates Wall. 06330_ S-27 Virus destroyed. 06331_ Guardian 4a destroyed. 06332_ Slug penetrates L-41 Fighter. 06333_ Insulated Plating destroyed. 06335_ Adv. Heat Sink destroyed. 06336_ Lgt. Treads destroyed. 06345_ Slug penetrates Wall. 06346_ Med. Armor Plating destroyed. 06347_ Gauss Rifle destroyed. Map ----- +----------------------------------------------------+ | ?????????????????????????????????????????????????? | | ?????????????????????????????????????????????????? | | ?????????????????????????????????????????????????? | | ?????????????????????????????????????????????????? | | ?????????????????????????????????????????????????? | | ?????????????????????????????????????????????????? | | ????????????????????????? ??????????????????????? | | ????????????????????????# #?????????????????????? | | ???????????????????????# ?????????????????????? | | ??????????????????????? ?????????????????????? | | ??????????????????????? ?????????????????????? | | ???????????????????????# #?????#? ???????????? | | ?????????????????????### ^ ##??? ## ???????????? | | ?????????????????????? %= ?? "??????????? | | ?????????????????????? * ?? ???????????? | | ??????????????????????? ?? ????????????? | | ??????????????????????? ?? ??????????????? | | ???????????????????????# g#? #??? #??????????? | | ?????????????########### ## ## ##?????????? | | ?????????????# % ????????? | | ?????????????# ??? =![[% ????????? | | ?????????????# #??????#%gs%= #??????????? | | ?????????????# #??????##[s## #???????????????? | | ?????????????# #???????#*=#?????????????????????? | | ?????????????# #???????#ls#?????????????????????? | | ?????????????# #???????#@ #?????????????????????? | | ?????????????# #???????# #?????????????????????? | | ?????????????# #???????# #?????????????????????? | | ????########## ######### #?????????????????????? | | ????# #?????????????????????? | | ????# #?????????????????????? | | ????# ####### #############?????????????????????? | | ????# #?????# #?????????????????????????????????? | | ????# #?????# #?????????????????????????????????? | | ????# #?????# #?????????????????????????????????? | | ????# #?????# #?????????????????????????????????? | | ????# #?????# ?????????????????????????????????? | | ????# #?????###?????????????????????????????????? | | ????# #?????????????????????????????????????????? | | ????# #?????????????????????????????????????????? | | ??### #?????????????????????????????????????????? | | ??# #?????????????????????????????????????????? | | ??# #?????????????????????????????????????????? | | ??# #?????????????????????????????????????????? | | ??######?????????????????????????????????????????? | | ?????????????????????????????????????????????????? | | ?????????????????????????????????????????????????? | | ?????????????????????????????????????????????????? | | ?????????????????????????????????????????????????? | | ?????????????????????????????????????????????????? | +----------------------------------------------------+ Best States ------------- Heat Dissipation 53 Energy Generation 14 Energy Capacity 280 Matter Stores 300 Matter Capacity 300 Sight Range 16 Terrain Scan Density 10 Armor Coverage 600 Resistance: EM 15 Evasion (%) 40 Recoil Reduction 2 Item Schematics ----------------- None Robot Schematics ------------------ None Fabricated ------------ Nothing Alien Tech Used ----------------- None Achievements -------------- None Challenges ------------ None Game ------ Seed CoolingNodeInterrupter Manual? 0 Play Time 00:27:07 Cumulative 403.8 hours Start 2019.12.27 @ 10:16:06 End 2019.12.27 @ 10:47:44 Sessions 3 Manual Loads 0 Difficulty Rogue Special Mode None Game No. 715 Rogue 715 Adventurer 0 Explorer 0 Win Type - Total 29 Types 22/0/3/3/1/0/0 Lore% 93 Gallery% 91 Achievement% 80 Wizard Run 0 Options --------- ASCII 1 Keyboard 0 Movement Numpad Keybinds 0 Fullscreen 0 Font 14/SmallcapsGlow Map View 76x50 Tactical HUD 1 Map Filters NONE Filters NONE Steam 1 RUN: a762dbf6-dab6-4452-a0bc-c0b17f0a01aa